[Event "Titled Tuesday Blitz April 12 Early 2022"]
[White "Martinez Alcantara, Jose Eduardo"]
[Black "Korchmar, Vasiliy"]
[WhiteFideId "3805662"]
[BlackFideId "24131750"]
[WhiteElo "2690"]
[BlackElo "2370"]
[Result "1-0"]
[Round "04"]
[TimeControl "180+1"]
[Date "2022.04.12"]
[WhiteClock "0:00:11"]
[BlackClock "0:00:04"]

1. e4 {[%clk 0:03:00]}  c5 {[%clk 0:03:00]} 2. Nf3 {[%clk 0:03:00]}  d6 {[%clk 0:03:00]} 3. Bb5+ {[%clk 0:03:00]}  Nd7 {[%clk 0:03:00]} 4. c3 {[%clk 0:02:52]}  Nf6 {[%clk 0:02:56]} 5. Qe2 {[%clk 0:02:52]}  a6 {[%clk 0:02:53]} 6. Ba4 {[%clk 0:02:52]}  b5 {[%clk 0:02:49]} 7. Bc2 {[%clk 0:02:52]}  Bb7 {[%clk 0:02:49]} 8. d4 {[%clk 0:02:52]}  e6 {[%clk 0:02:49]} 9. O-O {[%clk 0:02:52]}  Be7 {[%clk 0:02:45]} 10. Re1 {[%clk 0:02:47]}  O-O {[%clk 0:02:43]} 11. Nbd2 {[%clk 0:02:47]}  Qc7 {[%clk 0:02:39]} 12. Nf1 {[%clk 0:02:44]}  Rfc8 {[%clk 0:02:35]} 13. Bd3 {[%clk 0:02:44]}  Bf8 {[%clk 0:02:23]} 14. Ng3 {[%clk 0:02:44]}  g6 {[%clk 0:02:21]} 15. a4 {[%clk 0:02:32]}  b4 {[%clk 0:02:04]} 16. cxb4 {[%clk 0:02:27]}  cxb4 {[%clk 0:02:05]} 17. a5 {[%clk 0:02:16]}  Nb8 {[%clk 0:01:35]} 18. Bg5 {[%clk 0:02:16]}  Bg7 {[%clk 0:01:33]} 19. Qd2 {[%clk 0:02:15]}  Nc6 {[%clk 0:01:32]} 20. h4 {[%clk 0:01:52]}  Nxa5 {[%clk 0:01:19]} 21. Qxb4 {[%clk 0:01:51]}  Nc6 {[%clk 0:01:18]} 22. Qd2 {[%clk 0:01:52]}  Qb6 {[%clk 0:01:14]} 23. Bf1 {[%clk 0:01:43]}  Nb4 {[%clk 0:01:09]} 24. Qf4 {[%clk 0:01:20]}  Nd7 {[%clk 0:00:59]} 25. Red1 {[%clk 0:01:18]}  Nc2 {[%clk 0:00:55]} 26. Rab1 {[%clk 0:01:08]}  Nxd4 {[%clk 0:00:51]} 27. Qe3 {[%clk 0:01:03]}  Nxf3+ {[%clk 0:00:49]} 28. Qxf3 {[%clk 0:01:04]}  Ne5 {[%clk 0:00:43]} 29. Qa3 {[%clk 0:01:04]}  Ng4 {[%clk 0:00:39]} 30. Rd2 {[%clk 0:01:00]}  d5 {[%clk 0:00:38]} 31. Qf3 {[%clk 0:00:55]}  h5 {[%clk 0:00:36]} 32. Bd3 {[%clk 0:00:50]}  Rc7 {[%clk 0:00:28]} 33. exd5 {[%clk 0:00:47]}  Bxd5 {[%clk 0:00:28]} 34. Be4 {[%clk 0:00:48]}  Rac8 {[%clk 0:00:23]} 35. Bxd5 {[%clk 0:00:42]}  Rc1+ {[%clk 0:00:23]} 36. Rd1 {[%clk 0:00:37]}  Rxb1 {[%clk 0:00:22]} 37. Rxb1 {[%clk 0:00:38]}  exd5 {[%clk 0:00:23]} 38. Nf1 {[%clk 0:00:33]}  Bd4 {[%clk 0:00:17]} 39. Ne3 {[%clk 0:00:32]}  Nxe3 {[%clk 0:00:14]} 40. fxe3 {[%clk 0:00:32]}  Bg7 {[%clk 0:00:08]} 41. Qxd5 {[%clk 0:00:30]}  Re8 {[%clk 0:00:03]} 42. b4 {[%clk 0:00:25]}  Qe6 {[%clk 0:00:04]} 43. Qf3 {[%clk 0:00:22]}  Be5 {[%clk 0:00:02]} 44. Rf1 {[%clk 0:00:20]}  Bg7 {[%clk 0:00:02]} 45. Qb7 {[%clk 0:00:20]}  Rf8 {[%clk 0:00:01]} 46. Kh1 {[%clk 0:00:16]}  Re8 {[%clk 0:00:01]} 47. Rf3 {[%clk 0:00:15]}  f6 {[%clk 0:00:01]} 48. Bf4 {[%clk 0:00:15]}  Qg4 {[%clk 0:00:01]} 49. Qc6 {[%clk 0:00:12]}  Rc8 {[%clk 0:00:01]} 50. Qd5+ {[%clk 0:00:11]}  Kh7 {[%clk 0:00:01]} 51. Bg3 {[%clk 0:00:10]}  Rc1+ {[%clk 0:00:01]} 52. Kh2 {[%clk 0:00:10]}  Qxb4 {[%clk 0:00:02]} 53. Qd7 {[%clk 0:00:10]}  Qb1 {[%clk 0:00:02]} 54. Bf2 {[%clk 0:00:09]}  Rh1+ {[%clk 0:00:03]} 55. Kg3 {[%clk 0:00:09]}  Qb4 {[%clk 0:00:03]} 56. Rf4 {[%clk 0:00:09]}  Qb5 {[%clk 0:00:03]} 57. Qxb5 {[%clk 0:00:09]}  axb5 {[%clk 0:00:04]} 58. Rb4 {[%clk 0:00:09]}  Rc1 {[%clk 0:00:04]} 59. Rxb5 {[%clk 0:00:10]}  Rc7 {[%clk 0:00:04]} 60. Kf3 {[%clk 0:00:10]}  Re7 {[%clk 0:00:04]} 61. Bg3 {[%clk 0:00:11]}  Rf7 {[%clk 0:00:05]} 62. Bf4 {[%clk 0:00:12]}  Re7 {[%clk 0:00:05]} 63. Rb6 {[%clk 0:00:12]}  Rd7 {[%clk 0:00:05]} 64. Re6 {[%clk 0:00:12]}  Rf7 {[%clk 0:00:06]} 65. Rd6 {[%clk 0:00:13]}  Re7 {[%clk 0:00:06]} 66. Rc6 {[%clk 0:00:13]}  Rd7 {[%clk 0:00:06]} 67. Ke4 {[%clk 0:00:14]}  Re7+ {[%clk 0:00:07]} 68. Kd5 {[%clk 0:00:15]}  Rd7+ {[%clk 0:00:07]} 69. Ke6 {[%clk 0:00:15]}  Rd8 {[%clk 0:00:07]} 70. Rc7 {[%clk 0:00:15]}  Ra8 {[%clk 0:00:06]} 71. Bd6 {[%clk 0:00:15]}  Kg8 {[%clk 0:00:06]} 72. g3 {[%clk 0:00:14]}  Re8+ {[%clk 0:00:06]} 73. Be7 {[%clk 0:00:13]}  Ra8 {[%clk 0:00:06]} 74. Rd7 {[%clk 0:00:11]}  Ra6+ {[%clk 0:00:06]} 75. Bd6 {[%clk 0:00:11]}  Ra8 {[%clk 0:00:05]} 76. Rb7 {[%clk 0:00:10]}  Re8+ {[%clk 0:00:05]} 77. Be7 {[%clk 0:00:11]}  Ra8 {[%clk 0:00:05]} 78. e4 {[%clk 0:00:12]}  Ra6+ {[%clk 0:00:05]} 79. Bd6 {[%clk 0:00:12]}  Ra8 {[%clk 0:00:05]} 80. Rd7 {[%clk 0:00:07]}  Re8+ {[%clk 0:00:05]} 81. Be7 {[%clk 0:00:07]}  Ra8 {[%clk 0:00:05]} 82. Rd8+ {[%clk 0:00:05]}  Rxd8 {[%clk 0:00:05]} 83. Bxd8 {[%clk 0:00:06]}  f5 {[%clk 0:00:01]} 84. exf5 {[%clk 0:00:06]}  gxf5 {[%clk 0:00:02]} 85. Kxf5 {[%clk 0:00:07]}  Bh6 {[%clk 0:00:02]} 86. Kg6 {[%clk 0:00:07]}  Bd2 {[%clk 0:00:02]} 87. Kxh5 {[%clk 0:00:07]}  Be1 {[%clk 0:00:02]} 88. g4 {[%clk 0:00:07]}  Kh7 {[%clk 0:00:02]} 89. g5 {[%clk 0:00:08]}  Kg8 {[%clk 0:00:03]} 90. Bf6 {[%clk 0:00:08]}  Kh7 {[%clk 0:00:03]} 91. Bd4 {[%clk 0:00:09]}  Kg8 {[%clk 0:00:04]} 92. Kg4 {[%clk 0:00:09]}  Kh7 {[%clk 0:00:04]} 93. h5 {[%clk 0:00:10]}  Kg8 {[%clk 0:00:04]} 94. g6 {[%clk 0:00:11]}  Bb4 {[%clk 0:00:04]} 95. h6 {[%clk 0:00:11]} 1-0


[Site "https://www.chess.com"]

[Event "Titled Tuesday Blitz April 12 Early 2022"]
[White "Martinovici, Ilia"]
[Black "Fathy, Elameir"]
[WhiteFideId "13907034"]
[BlackFideId "10600396"]
[WhiteElo "2282"]
[BlackElo "2311"]
[Result "1-0"]
[Round "04"]
[TimeControl "180+1"]
[Date "2022.04.13"]
[WhiteClock "0:00:28"]
[BlackClock "0:00:04"]

1. d4 {[%clk 0:03:00]}  d5 {[%clk 0:02:59]} 2. c4 {[%clk 0:03:01]}  c6 {[%clk 0:02:59]} 3. Nf3 {[%clk 0:03:00]}  Nf6 {[%clk 0:02:59]} 4. Nc3 {[%clk 0:03:00]}  dxc4 {[%clk 0:02:59]} 5. a4 {[%clk 0:02:59]}  Bf5 {[%clk 0:02:59]} 6. e3 {[%clk 0:03:00]}  e6 {[%clk 0:02:59]} 7. Bxc4 {[%clk 0:03:00]}  Bb4 {[%clk 0:03:00]} 8. O-O {[%clk 0:03:00]}  O-O {[%clk 0:03:01]} 9. Qe2 {[%clk 0:02:58]}  Nbd7 {[%clk 0:03:00]} 10. e4 {[%clk 0:02:50]}  Bg6 {[%clk 0:02:59]} 11. e5 {[%clk 0:02:43]}  Nd5 {[%clk 0:03:00]} 12. Bd2 {[%clk 0:02:40]}  a5 {[%clk 0:02:54]} 13. g3 {[%clk 0:02:32]}  Bh5 {[%clk 0:02:34]} 14. h3 {[%clk 0:02:23]}  Be7 {[%clk 0:02:10]} 15. Bd3 {[%clk 0:02:14]}  Nb4 {[%clk 0:02:02]} 16. Bb1 {[%clk 0:02:08]}  c5 {[%clk 0:01:51]} 17. g4 {[%clk 0:02:06]}  Bg6 {[%clk 0:01:52]} 18. Bxg6 {[%clk 0:02:05]}  hxg6 {[%clk 0:01:42]} 19. Nb5 {[%clk 0:01:52]}  cxd4 {[%clk 0:01:31]} 20. Nbxd4 {[%clk 0:01:50]}  Rc8 {[%clk 0:01:20]} 21. Rad1 {[%clk 0:01:46]}  Qb6 {[%clk 0:01:09]} 22. Nb5 {[%clk 0:01:36]}  Rc2 {[%clk 0:00:44]} 23. Qe4 {[%clk 0:01:07]}  Qc6 {[%clk 0:00:41]} 24. Qxc6 {[%clk 0:01:01]}  bxc6 {[%clk 0:00:32]} 25. Bxb4 {[%clk 0:00:55]}  Bxb4 {[%clk 0:00:23]} 26. Nfd4 {[%clk 0:00:51]}  Rxb2 {[%clk 0:00:13]} 27. Nxc6 {[%clk 0:00:51]}  Nb6 {[%clk 0:00:05]} 28. Rb1 {[%clk 0:00:48]}  Rxb1 {[%clk 0:00:06]} 29. Rxb1 {[%clk 0:00:49]}  Nxa4 {[%clk 0:00:07]} 30. Nxb4 {[%clk 0:00:48]}  axb4 {[%clk 0:00:07]} 31. Rxb4 {[%clk 0:00:48]}  Nc5 {[%clk 0:00:08]} 32. Nd6 {[%clk 0:00:43]}  Nd3 {[%clk 0:00:06]} 33. Rb5 {[%clk 0:00:41]}  Rd8 {[%clk 0:00:04]} 34. Ne4 {[%clk 0:00:34]}  Nf4 {[%clk 0:00:02]} 35. Kh2 {[%clk 0:00:34]}  Rd3 {[%clk 0:00:02]} 36. Rb8+ {[%clk 0:00:32]}  Kh7 {[%clk 0:00:01]} 37. Ng5+ {[%clk 0:00:33]}  Kh6 {[%clk 0:00:02]} 38. Nxf7+ {[%clk 0:00:29]}  Kh7 {[%clk 0:00:03]} 39. Ng5+ {[%clk 0:00:30]}  Kh6 {[%clk 0:00:04]} 40. h4 {[%clk 0:00:28]} 1-0


[Site "https://www.chess.com"]

[Event "Titled Tuesday Blitz April 12 Early 2022"]
[White "Melikhov, Evgeny V."]
[Black "De Souza, Cristiano Gomes"]
[WhiteFideId "4122046"]
[BlackFideId "2151758"]
[WhiteElo "1931"]
[BlackElo "2068"]
[Result "1-0"]
[Round "04"]
[TimeControl "180+1"]
[Date "2022.04.13"]
[WhiteClock "0:00:54"]
[BlackClock "0:01:28"]

1. d4 {[%clk 0:03:00]}  Nf6 {[%clk 0:02:58]} 2. c4 {[%clk 0:03:00]}  g6 {[%clk 0:02:58]} 3. Nc3 {[%clk 0:03:00]}  Bg7 {[%clk 0:02:59]} 4. e4 {[%clk 0:03:00]}  d6 {[%clk 0:03:00]} 5. f3 {[%clk 0:03:01]}  O-O {[%clk 0:03:00]} 6. Be3 {[%clk 0:03:01]}  a6 {[%clk 0:03:01]} 7. Nge2 {[%clk 0:02:59]}  Nc6 {[%clk 0:03:01]} 8. Qd2 {[%clk 0:02:58]}  Rb8 {[%clk 0:03:01]} 9. h4 {[%clk 0:02:58]}  h5 {[%clk 0:03:00]} 10. Nc1 {[%clk 0:02:58]}  e5 {[%clk 0:02:59]} 11. d5 {[%clk 0:02:57]}  Nd4 {[%clk 0:02:58]} 12. N1e2 {[%clk 0:02:58]}  b5 {[%clk 0:02:51]} 13. Nxd4 {[%clk 0:02:55]}  exd4 {[%clk 0:02:50]} 14. Bxd4 {[%clk 0:02:55]}  b4 {[%clk 0:02:51]} 15. Ne2 {[%clk 0:02:45]}  Re8 {[%clk 0:02:48]} 16. O-O-O {[%clk 0:02:39]}  a5 {[%clk 0:02:48]} 17. Kb1 {[%clk 0:02:38]}  Kh7 {[%clk 0:02:37]} 18. Ng3 {[%clk 0:02:30]}  Bd7 {[%clk 0:02:28]} 19. Be2 {[%clk 0:02:29]}  Qe7 {[%clk 0:02:24]} 20. Ka1 {[%clk 0:02:25]}  a4 {[%clk 0:02:24]} 21. Nf1 {[%clk 0:02:03]}  a3 {[%clk 0:02:23]} 22. b3 {[%clk 0:02:01]}  Nxe4 {[%clk 0:02:19]} 23. fxe4 {[%clk 0:01:56]}  Qxe4 {[%clk 0:02:19]} 24. Bxg7 {[%clk 0:01:54]}  Qxe2 {[%clk 0:02:17]} 25. Qxe2 {[%clk 0:01:52]}  Rxe2 {[%clk 0:02:16]} 26. Bd4 {[%clk 0:01:48]}  Rbe8 {[%clk 0:02:12]} 27. Nd2 {[%clk 0:01:29]}  Rxg2 {[%clk 0:02:10]} 28. Bf6 {[%clk 0:01:14]}  Ree2 {[%clk 0:02:08]} 29. Bd8 {[%clk 0:01:05]}  c6 {[%clk 0:02:01]} 30. Bc7 {[%clk 0:01:01]}  cxd5 {[%clk 0:02:01]} 31. cxd5 {[%clk 0:01:01]}  Bf5 {[%clk 0:01:59]} 32. Bxd6 {[%clk 0:00:58]}  Bc2 {[%clk 0:01:58]} 33. Bxb4 {[%clk 0:00:58]}  Bxd1 {[%clk 0:01:57]} 34. Rxd1 {[%clk 0:00:59]}  Re4 {[%clk 0:01:51]} 35. Nc4 {[%clk 0:00:57]}  Ree2 {[%clk 0:01:47]} 36. d6 {[%clk 0:00:57]}  Rxa2+ {[%clk 0:01:44]} 37. Kb1 {[%clk 0:00:58]}  Rae2 {[%clk 0:01:39]} 38. d7 {[%clk 0:00:56]}  a2+ {[%clk 0:01:39]} 39. Ka1 {[%clk 0:00:56]}  Rb2 {[%clk 0:01:31]} 40. d8=Q {[%clk 0:00:55]}  Rb1+ {[%clk 0:01:30]} 41. Rxb1 {[%clk 0:00:54]}  axb1=Q+ {[%clk 0:01:28]} 42. Kxb1 {[%clk 0:00:54]} 1-0


[Site "https://www.chess.com"]

[Event "Titled Tuesday Blitz April 12 Early 2022"]
[White "Meshkovs, Nikita"]
[Black "Paravyan, David"]
[WhiteFideId "11602740"]
[BlackFideId "4194985"]
[WhiteElo "2506"]
[BlackElo "2569"]
[Result "1-0"]
[Round "04"]
[TimeControl "180+1"]
[Date "2022.04.12"]
[WhiteClock "0:00:07"]
[BlackClock "0:00:15"]

1. d4 {[%clk 0:03:00]}  Nf6 {[%clk 0:02:59]} 2. Nf3 {[%clk 0:02:59]}  g6 {[%clk 0:03:00]} 3. g3 {[%clk 0:02:59]}  Bg7 {[%clk 0:03:00]} 4. Bg2 {[%clk 0:03:00]}  d5 {[%clk 0:03:01]} 5. O-O {[%clk 0:03:01]}  O-O {[%clk 0:03:01]} 6. a4 {[%clk 0:03:01]}  c5 {[%clk 0:02:54]} 7. dxc5 {[%clk 0:03:02]}  Na6 {[%clk 0:02:55]} 8. a5 {[%clk 0:03:03]}  Nxc5 {[%clk 0:02:55]} 9. Nc3 {[%clk 0:03:02]}  Nce4 {[%clk 0:02:54]} 10. Nxe4 {[%clk 0:03:01]}  Nxe4 {[%clk 0:02:55]} 11. c3 {[%clk 0:03:01]}  Bf5 {[%clk 0:02:51]} 12. Qb3 {[%clk 0:03:01]}  b6 {[%clk 0:02:50]} 13. Bf4 {[%clk 0:02:26]}  bxa5 {[%clk 0:02:48]} 14. Qb5 {[%clk 0:02:20]}  Qb6 {[%clk 0:01:44]} 15. Rxa5 {[%clk 0:02:19]}  Rad8 {[%clk 0:01:40]} 16. Ne5 {[%clk 0:02:02]}  g5 {[%clk 0:01:33]} 17. Nc6 {[%clk 0:02:02]}  Rd7 {[%clk 0:01:11]} 18. Be3 {[%clk 0:00:49]}  Qxb5 {[%clk 0:01:11]} 19. Rxb5 {[%clk 0:00:50]}  e6 {[%clk 0:01:11]} 20. Ra1 {[%clk 0:00:44]}  Nd6 {[%clk 0:01:01]} 21. Rb4 {[%clk 0:00:35]}  h6 {[%clk 0:00:56]} 22. h4 {[%clk 0:00:26]}  Nc4 {[%clk 0:00:52]} 23. Rxa7 {[%clk 0:00:22]}  Rxa7 {[%clk 0:00:42]} 24. Bxa7 {[%clk 0:00:22]}  Kh7 {[%clk 0:00:31]} 25. e4 {[%clk 0:00:22]}  Bg6 {[%clk 0:00:19]} 26. exd5 {[%clk 0:00:22]}  exd5 {[%clk 0:00:19]} 27. Bxd5 {[%clk 0:00:22]}  Nd6 {[%clk 0:00:18]} 28. Bc5 {[%clk 0:00:20]}  Ra8 {[%clk 0:00:13]} 29. Bxd6 {[%clk 0:00:18]}  Ra1+ {[%clk 0:00:14]} 30. Kg2 {[%clk 0:00:18]}  Rd1 {[%clk 0:00:15]} 31. Nd4 {[%clk 0:00:18]}  Bd3 {[%clk 0:00:15]} 32. hxg5 {[%clk 0:00:17]}  hxg5 {[%clk 0:00:16]} 33. g4 {[%clk 0:00:18]}  Kg6 {[%clk 0:00:15]} 34. Rb6 {[%clk 0:00:15]}  f6 {[%clk 0:00:14]} 35. Kf3 {[%clk 0:00:13]}  Bf1 {[%clk 0:00:13]} 36. Be4+ {[%clk 0:00:13]}  Kf7 {[%clk 0:00:13]} 37. Rb7+ {[%clk 0:00:13]}  Kg8 {[%clk 0:00:13]} 38. Nf5 {[%clk 0:00:12]}  Bf8 {[%clk 0:00:13]} 39. Rb8 {[%clk 0:00:11]}  Kh7 {[%clk 0:00:13]} 40. Rxf8 {[%clk 0:00:10]}  Bg2+ {[%clk 0:00:14]} 41. Kxg2 {[%clk 0:00:07]}  Rg1+ {[%clk 0:00:15]} 42. Kxg1 {[%clk 0:00:07]} 1-0


[Site "https://www.chess.com"]

[Event "Titled Tuesday Blitz April 12 Early 2022"]
[White "Mickiewicz, Piotr"]
[Black "Kostina, Nadezhda"]
[WhiteFideId "1114891"]
[BlackFideId "4195876"]
[WhiteElo "2266"]
[BlackElo "1982"]
[Result "0-1"]
[Round "04"]
[TimeControl "180+1"]
[Date "2022.04.13"]
[WhiteClock "0:00:20"]
[BlackClock "0:00:06"]

1. e4 {[%clk 0:03:00]}  c5 {[%clk 0:02:57]} 2. Nf3 {[%clk 0:03:00]}  Nc6 {[%clk 0:02:57]} 3. d4 {[%clk 0:03:00]}  cxd4 {[%clk 0:02:56]} 4. Nxd4 {[%clk 0:03:01]}  Nf6 {[%clk 0:02:54]} 5. Nc3 {[%clk 0:03:01]}  d6 {[%clk 0:02:54]} 6. Bg5 {[%clk 0:02:59]}  Qb6 {[%clk 0:02:53]} 7. Nb3 {[%clk 0:02:57]}  e6 {[%clk 0:02:46]} 8. Qd2 {[%clk 0:02:54]}  Be7 {[%clk 0:02:42]} 9. O-O-O {[%clk 0:02:53]}  a6 {[%clk 0:02:40]} 10. f4 {[%clk 0:02:46]}  Qc7 {[%clk 0:02:14]} 11. Kb1 {[%clk 0:02:41]}  b5 {[%clk 0:02:13]} 12. Bxf6 {[%clk 0:02:39]}  gxf6 {[%clk 0:02:12]} 13. f5 {[%clk 0:02:37]}  b4 {[%clk 0:02:08]} 14. Ne2 {[%clk 0:02:35]}  a5 {[%clk 0:02:05]} 15. Ned4 {[%clk 0:02:31]}  a4 {[%clk 0:01:53]} 16. Bb5 {[%clk 0:02:25]}  Bd7 {[%clk 0:01:31]} 17. fxe6 {[%clk 0:02:22]}  fxe6 {[%clk 0:01:26]} 18. Bxc6 {[%clk 0:02:22]}  Bxc6 {[%clk 0:01:26]} 19. Nxe6 {[%clk 0:02:21]}  Qb7 {[%clk 0:01:09]} 20. Nbd4 {[%clk 0:02:16]}  Bxe4 {[%clk 0:01:07]} 21. Rhe1 {[%clk 0:02:11]}  f5 {[%clk 0:00:43]} 22. Qh6 {[%clk 0:02:01]}  b3 {[%clk 0:00:35]} 23. Qh5+ {[%clk 0:01:38]}  Kd7 {[%clk 0:00:31]} 24. Nxb3 {[%clk 0:01:29]}  Kxe6 {[%clk 0:00:24]} 25. Qh6+ {[%clk 0:01:20]}  Kf7 {[%clk 0:00:17]} 26. Nd4 {[%clk 0:00:55]}  Rab8 {[%clk 0:00:16]} 27. b3 {[%clk 0:00:53]}  axb3 {[%clk 0:00:15]} 28. axb3 {[%clk 0:00:53]}  Bf6 {[%clk 0:00:15]} 29. Qh5+ {[%clk 0:00:47]}  Ke7 {[%clk 0:00:14]} 30. Nxf5+ {[%clk 0:00:46]}  Kd7 {[%clk 0:00:14]} 31. Rxd6+ {[%clk 0:00:44]}  Kc8 {[%clk 0:00:14]} 32. Rxe4 {[%clk 0:00:33]}  Qxe4 {[%clk 0:00:13]} 33. Rxf6 {[%clk 0:00:33]}  Rxb3+ {[%clk 0:00:11]} 34. Kc1 {[%clk 0:00:31]}  Qe1+ {[%clk 0:00:11]} 35. Qd1 {[%clk 0:00:30]}  Rb1+ {[%clk 0:00:11]} 36. Kxb1 {[%clk 0:00:31]}  Qxd1+ {[%clk 0:00:12]} 37. Kb2 {[%clk 0:00:31]}  Kc7 {[%clk 0:00:11]} 38. Re6 {[%clk 0:00:27]}  Rb8+ {[%clk 0:00:10]} 39. Kc3 {[%clk 0:00:25]}  Qa1+ {[%clk 0:00:08]} 40. Kd2 {[%clk 0:00:24]}  Rd8+ {[%clk 0:00:08]} 41. Ke2 {[%clk 0:00:25]}  Qd1+ {[%clk 0:00:08]} 42. Kf2 {[%clk 0:00:25]}  Rd2+ {[%clk 0:00:08]} 43. Kg3 {[%clk 0:00:25]}  Qxc2 {[%clk 0:00:07]} 44. Ne3 {[%clk 0:00:23]}  Rd3 {[%clk 0:00:07]} 45. Kf4 {[%clk 0:00:23]}  Qf2+ {[%clk 0:00:06]} 46. Kg5 {[%clk 0:00:21]}  Rxe3 {[%clk 0:00:06]} 47. Rh6 {[%clk 0:00:22]}  Qxg2+ {[%clk 0:00:06]} 48. Kf6 {[%clk 0:00:22]}  Qf2+ {[%clk 0:00:06]} 49. Kg7 {[%clk 0:00:21]}  Re7+ {[%clk 0:00:06]} 50. Kh8 {[%clk 0:00:20]}  Qf8# {[%clk 0:00:06]} 0-1


[Site "https://www.chess.com"]

[Event "Titled Tuesday Blitz April 12 Early 2022"]
[White "Molina, Roberto Junio Brito"]
[Black "Decuigniere, Tom"]
[WhiteFideId "2109450"]
[BlackFideId "26093820"]
[WhiteElo "2432"]
[BlackElo "1997"]
[Result "1-0"]
[Round "04"]
[TimeControl "180+1"]
[Date "2022.04.13"]
[WhiteClock "0:01:35"]
[BlackClock "0:00:25"]

1. d4 {[%clk 0:03:00]}  Nf6 {[%clk 0:02:59]} 2. c4 {[%clk 0:03:00]}  e6 {[%clk 0:03:00]} 3. Nf3 {[%clk 0:03:00]}  Bb4+ {[%clk 0:03:00]} 4. Bd2 {[%clk 0:02:59]}  Qe7 {[%clk 0:03:01]} 5. g3 {[%clk 0:02:59]}  Nc6 {[%clk 0:03:01]} 6. Bg2 {[%clk 0:03:00]}  Bxd2+ {[%clk 0:02:59]} 7. Nbxd2 {[%clk 0:03:00]}  d6 {[%clk 0:02:58]} 8. O-O {[%clk 0:03:00]}  e5 {[%clk 0:02:58]} 9. d5 {[%clk 0:02:59]}  Nb8 {[%clk 0:02:59]} 10. e4 {[%clk 0:03:00]}  O-O {[%clk 0:02:58]} 11. Ne1 {[%clk 0:03:00]}  a5 {[%clk 0:02:56]} 12. b3 {[%clk 0:02:59]}  Na6 {[%clk 0:02:55]} 13. Nd3 {[%clk 0:02:58]}  Bg4 {[%clk 0:02:54]} 14. f3 {[%clk 0:02:58]}  Bd7 {[%clk 0:02:55]} 15. a3 {[%clk 0:02:59]}  c6 {[%clk 0:02:53]} 16. Qe2 {[%clk 0:02:57]}  cxd5 {[%clk 0:02:52]} 17. cxd5 {[%clk 0:02:56]}  Bb5 {[%clk 0:02:51]} 18. Qe3 {[%clk 0:02:56]}  Nc5 {[%clk 0:02:41]} 19. Nxc5 {[%clk 0:02:56]}  Bxf1 {[%clk 0:02:42]} 20. Bxf1 {[%clk 0:02:51]}  dxc5 {[%clk 0:02:42]} 21. a4 {[%clk 0:02:48]}  Ne8 {[%clk 0:02:35]} 22. Rc1 {[%clk 0:02:48]}  b6 {[%clk 0:02:31]} 23. Bb5 {[%clk 0:02:47]}  Nd6 {[%clk 0:02:30]} 24. Bd3 {[%clk 0:02:45]}  Rae8 {[%clk 0:02:21]} 25. Nc4 {[%clk 0:02:43]}  Nxc4 {[%clk 0:02:15]} 26. Bxc4 {[%clk 0:02:44]}  Qd6 {[%clk 0:02:11]} 27. g4 {[%clk 0:02:43]}  h6 {[%clk 0:02:05]} 28. Rc2 {[%clk 0:02:41]}  Re7 {[%clk 0:01:59]} 29. h4 {[%clk 0:02:41]}  Qf6 {[%clk 0:01:56]} 30. h5 {[%clk 0:02:41]}  Rd7 {[%clk 0:01:47]} 31. Rg2 {[%clk 0:02:41]}  Qg5 {[%clk 0:01:45]} 32. Kf2 {[%clk 0:02:40]}  Rd6 {[%clk 0:01:39]} 33. Ke2 {[%clk 0:02:39]}  Qxe3+ {[%clk 0:01:30]} 34. Kxe3 {[%clk 0:02:39]}  g6 {[%clk 0:01:30]} 35. Rh2 {[%clk 0:02:39]}  Kg7 {[%clk 0:01:30]} 36. Bd3 {[%clk 0:02:38]}  gxh5 {[%clk 0:01:17]} 37. Rxh5 {[%clk 0:02:38]}  Re8 {[%clk 0:01:13]} 38. Bb5 {[%clk 0:02:24]}  Re7 {[%clk 0:01:11]} 39. Ba6 {[%clk 0:02:24]}  Rg6 {[%clk 0:01:07]} 40. Rh1 {[%clk 0:02:19]}  Rg5 {[%clk 0:01:05]} 41. Be2 {[%clk 0:02:17]}  Kg6 {[%clk 0:01:01]} 42. Bb5 {[%clk 0:02:11]}  f6 {[%clk 0:00:42]} 43. d6 {[%clk 0:02:03]}  Rb7 {[%clk 0:00:37]} 44. Be8+ {[%clk 0:01:55]}  Kg7 {[%clk 0:00:34]} 45. Kd3 {[%clk 0:01:48]}  Kf8 {[%clk 0:00:30]} 46. d7 {[%clk 0:01:43]}  Ke7 {[%clk 0:00:24]} 47. Rxh6 {[%clk 0:01:42]}  Rg7 {[%clk 0:00:25]} 48. Kc4 {[%clk 0:01:35]} 1-0


[Site "https://www.chess.com"]

[Event "Titled Tuesday Blitz April 12 Early 2022"]
[White "Muradov, Soltan"]
[Black "Shandrygin, Nikita"]
[WhiteFideId "14002108"]
[BlackFideId "24198668"]
[WhiteElo "1854"]
[BlackElo "2323"]
[Result "1-0"]
[Round "04"]
[TimeControl "180+1"]
[Date "2022.04.13"]
[WhiteClock "0:01:12"]
[BlackClock "0:01:09"]

1. d4 {[%clk 0:03:00]}  d5 {[%clk 0:02:24]} 2. c3 {[%clk 0:02:58]}  Nc6 {[%clk 0:02:25]} 3. Nf3 {[%clk 0:02:57]}  e5 {[%clk 0:02:26]} 4. dxe5 {[%clk 0:02:57]}  Bg4 {[%clk 0:02:25]} 5. Qb3 {[%clk 0:02:46]}  Rb8 {[%clk 0:02:23]} 6. Bf4 {[%clk 0:02:43]}  Nge7 {[%clk 0:02:23]} 7. Nbd2 {[%clk 0:02:41]}  Ng6 {[%clk 0:02:22]} 8. Bg3 {[%clk 0:02:41]}  Bc5 {[%clk 0:02:18]} 9. h3 {[%clk 0:02:21]}  Be6 {[%clk 0:02:14]} 10. e3 {[%clk 0:02:17]}  d4 {[%clk 0:02:12]} 11. Bc4 {[%clk 0:02:08]}  dxe3 {[%clk 0:02:12]} 12. fxe3 {[%clk 0:02:09]}  Bxc4 {[%clk 0:01:50]} 13. Qxc4 {[%clk 0:02:02]}  Bxe3 {[%clk 0:01:48]} 14. O-O-O {[%clk 0:02:02]}  O-O {[%clk 0:01:47]} 15. Rhe1 {[%clk 0:02:01]}  Bh6 {[%clk 0:01:45]} 16. Kb1 {[%clk 0:02:01]}  Qe7 {[%clk 0:01:45]} 17. e6 {[%clk 0:02:00]}  f6 {[%clk 0:01:41]} 18. Ne4 {[%clk 0:01:53]}  Rbd8 {[%clk 0:01:38]} 19. Nc5 {[%clk 0:01:30]}  Nge5 {[%clk 0:01:12]} 20. Nxe5 {[%clk 0:01:22]}  fxe5 {[%clk 0:01:09]} 21. Nxb7 {[%clk 0:01:12]} 1-0


[Site "https://www.chess.com"]